bitfinex/quotes_SOLUSD_20250718
["timestamp","ask_amount","ask_price","bid_price","bid_amount"]
[1752832542868,13.14278876,179.88,179.86,28.52]
[1752832543072,6.22934178,179.88,179.86,28.52]
[1752832543271,13.81278876,179.88,179.86,28.52]
[1752832544065,6.22934178,179.88,179.86,28.52]
[1752832544265,13.14278876,179.88,179.86,28.52]
[1752832544785,5.55934178,179.88,179.86,28.52]
[1752832545371,8.24344698,179.87,179.86,28.52]
[1752832545972,13.14301778,179.87,179.86,28.52]
[1752832546586,13.80301778,179.87,179.86,28.52]
[1752832547194,0.06,179.89,179.86,41.55344698]
[1752832547365,0.06,179.89,179.88,40.90344698]
[1752832547877,5.6177215,179.93,179.88,41.55344698]
[1752832548083,0.06,179.93,179.9,33.32]
[1752832548291,0.06,179.93,179.91,62.32]
[1752832548596,8.24344698,179.92,179.91,29.0]
[1752832548782,0.66,179.92,179.91,29.0]
[1752832549780,7.64344698,179.93,179.91,29.0]
[1752832550003,5.55802578,179.92,179.91,29.0]
[1752832551825,13.80147276,179.92,179.91,29.0]
[1752832552399,5.55802578,179.92,179.91,29.0]
[1752832553696,0.06,179.93,179.91,29.0]
[1752832553901,0.06,179.93,179.91,29.65]
[1752832554105,7.64344698,179.93,179.91,29.0]
[1752832554696,0.06,179.93,179.91,29.0]
[1752832555076,0.06,179.93,179.92,0.65]
[1752832555501,0.06,179.93,179.91,29.0]
[1752832555694,0.06,179.93,179.91,29.65]
[1752832556405,0.06,179.93,179.91,29.0]
[1752832557102,13.140855,179.94,179.91,29.0]
[1752832557303,13.800855,179.94,179.91,29.0]
[1752832557700,0.06,179.97,179.93,7.58344698]
[1752832557903,0.06,179.97,179.94,37.23344698]
[1752832558204,0.06,179.97,179.95,29.0]
[1752832558587,0.06,179.97,179.96,0.65]
[1752832558982,8.30344698,179.97,179.96,29.0]
[1752832559703,8.30344698,179.97,179.87,31.55949677]
[1752832559893,7.58344698,179.95,179.9,8.23344698]
[1752832560094,7.58344698,179.95,179.91,29.63]
[1752832560293,0.66,179.96,179.91,29.63]
[1752832560494,0.06,179.93,179.91,29.63]
[1752832560695,13.14054617,179.95,179.91,29.63]
[1752832561896,13.14054617,179.95,179.92,0.65]
[1752832562097,13.80054617,179.95,179.93,28.96]
[1752832562299,8.24344698,179.94,179.88,0.65]
[1752832562501,7.58344698,179.92,179.89,28.96]
[1752832562704,13.14116386,179.93,179.89,28.96]
[1752832563400,13.80116386,179.93,179.89,29.61]
[1752832563724,13.14116386,179.93,179.89,28.96]
[1752832563900,0.66,179.92,179.89,28.96]
[1752832564610,5.55833472,179.91,179.89,28.96]
[1752832564993,6.21740802,179.94,179.89,28.96]
[1752832565320,7.58344698,179.93,179.9,0.65]
[1752832565490,8.24344698,179.93,179.89,28.96]
[1752832565822,8.24344698,179.93,179.89,29.61]
[1752832566231,0.66,179.93,179.89,0.65]
[1752832566390,7.58344698,179.93,179.9,29.71]
[1752832566592,19.45092808,179.94,179.9,29.71]
[1752832566826,27.03437506,179.94,179.91,0.65]
[1752832567418,19.45092808,179.94,179.91,0.65]
[1752832567625,27.03437506,179.94,179.91,0.65]
[1752832567924,22.13696704,179.94,179.91,29.06]
[1752832568711,7.58344698,179.93,179.91,29.06]
[1752832569096,7.58344698,179.92,179.86,34.151]
[1752832569403,7.58344698,179.92,179.87,37.27344698]
[1752832569603,7.58344698,179.92,179.88,0.65]
[1752832569922,5.55833472,179.91,179.89,0.65]
[1752832570826,5.55833472,179.91,179.9,29.02]
[1752832571049,5.55833472,179.91,179.9,29.67]
[1752832572333,5.55802578,179.92,179.9,62.99]
[1752832572548,5.55802578,179.92,179.91,0.65]
[1752832573442,5.55740802,179.94,179.91,0.65]
[1752832574124,5.55740802,179.94,179.92,0.65]
[1752832574328,5.55740802,179.94,179.93,29.0]
[1752832574641,5.55740802,179.94,179.93,29.65]
[1752832574840,13.95174426,179.97,179.93,62.97]
[1752832575146,5.55679039,179.96,179.94,0.65]
[1752832575316,5.61648163,179.97,179.95,0.68]
[1752832575514,5.61648163,179.97,179.96,29.68]
[1752832577034,0.06,179.97,179.96,29.68]
[1752832577242,0.06,179.97,179.96,29.0]
[1752832578024,5.61648163,179.97,179.96,29.0]
[1752832579146,0.06,179.97,179.96,29.0]
[1752832579338,0.06,179.97,179.96,29.68]
[1752832580833,0.72,179.97,179.92,0.68]
[1752832581029,0.66,179.96,179.93,29.72]
[1752832581335,7.64344698,179.97,179.93,29.04]
[1752832581519,8.30344698,179.97,179.93,29.72]
[1752832581713,0.06,179.97,179.94,0.68]
[1752832581919,0.06,179.97,179.95,0.68]
[1752832582219,0.06,179.97,179.96,29.12]
[1752832582941,5.61648163,179.97,179.96,29.12]
[1752832583339,5.61648163,179.97,179.96,29.8]
[1752832583953,5.61648163,179.97,179.96,29.12]
[1752832584133,5.61648163,179.97,179.96,29.8]
[1752832584823,0.06,179.97,179.96,29.12]
[1752832585552,0.06,179.97,179.96,63.12]
[1752832585753,0.06,179.97,179.96,70.70344698]
[1752832585945,0.06,179.98,179.96,70.70344698]
[1752832586150,0.06,179.98,179.97,41.58344698]
[1752832586521,0.06,179.98,179.97,34.0]
[1752832587038,0.06,179.98,179.97,63.22]
[1752832590653,0.06,180.0,179.97,29.9]
[1752832590825,0.06,180.0,179.97,0.68]
[1752832591026,0.06,180.0,179.98,29.3]
[1752832591849,0.72,180.0,179.98,29.3]
[1752832592658,0.06,180.0,179.98,29.3]
[1752832592855,0.06,180.0,179.98,29.98]
[1752832593648,0.06,180.0,179.98,29.3]
[1752832595532,0.06,180.0,179.99,29.24]
[1752832596062,8.30344698,180.0,179.95,7.58344698]
[1752832596262,0.66,179.99,179.96,29.24]
[1752832596438,0.06,180.0,179.96,29.92]
[1752832596643,7.64344698,180.0,179.97,0.68]
[1752832596844,7.64344698,180.0,179.98,29.24]
[1752832597966,5.55586421,179.99,179.98,29.24]
[1752832599654,13.79931119,179.99,179.98,29.24]
[1752832600062,13.13931119,179.99,179.98,29.24]
[1752832600254,5.55586421,179.99,179.98,29.24]
[1752832601378,5.55586421,179.99,179.98,29.2]
[1752832601991,5.55586421,179.99,179.98,29.88]
[1752832602784,5.55586421,179.99,179.98,29.2]
[1752832603262,5.55586421,179.99,179.98,29.23]
[1752832604084,5.55586421,179.99,179.98,0.03]
[1752832604286,13.79931119,179.99,179.98,29.19]
[1752832604684,5.55586421,179.99,179.98,29.19]
[1752832605383,13.13931119,179.99,179.98,0.03]
[1752832605686,13.82931119,179.99,179.98,0.03]
[1752832605867,6.24586421,179.99,179.98,0.03]
[1752832606069,13.82931119,179.99,179.98,0.03]
[1752832606382,13.82931119,179.99,179.95,29.26]
[1752832606383,27.71897172,179.99,179.95,29.26]
[1752832606571,7.58344698,179.96,179.94,0.03]
[1752832606880,7.58344698,179.95,179.94,0.03]
[1752832607058,8.27344698,179.95,179.94,0.03]
[1752832608192,13.83054617,179.95,179.94,0.03]
[1752832610900,6.24709919,179.95,179.94,0.03]
[1752832611105,13.83054617,179.95,179.94,0.03]
[1752832621795,13.83054617,179.95,179.89,0.03]
[1752832621796,27.72329415,179.95,179.89,0.03]
[1752832622018,7.58344698,179.92,179.89,0.73]
[1752832622226,7.58344698,179.91,179.9,0.7]
[1752832622696,0.69,179.94,179.9,0.7]
[1752832622896,7.58344698,179.91,179.9,0.7]
[1752832623123,7.58344698,179.91,179.9,0.73]
[1752832623914,13.1417817,179.91,179.9,0.73]
[1752832624335,5.55740802,179.94,179.9,0.73]
[1752832624508,13.140855,179.94,179.9,0.73]
[1752832624835,5.55740802,179.94,179.9,0.73]
[1752832625009,13.140855,179.94,179.9,29.85]
[1752832625209,13.140855,179.94,179.91,0.7]
[1752832626137,7.58344698,179.94,179.91,0.7]
[1752832626322,0.69,179.97,179.91,0.7]
[1752832626626,7.58344698,179.94,179.91,0.7]
[1752832627526,5.55679039,179.96,179.91,0.7]
[1752832627830,7.58344698,179.94,179.91,0.7]
[1752832629727,13.14115341,179.94,179.91,0.7]
[1752832630423,13.14062364,179.95,179.91,0.7]
[1752832630928,13.14062364,179.95,179.91,34.02]
[1752832631111,13.14062364,179.95,179.92,0.7]
[1752832632009,7.58344698,179.94,179.91,33.32]
[1752832632212,7.58344698,179.94,179.92,0.7]
[1752832632716,7.58344698,179.94,179.93,0.7]
[1752832633323,13.14062364,179.95,179.93,0.7]
[1752832633518,13.14062364,179.95,179.94,0.7]
[1752832634132,5.55717666,179.95,179.94,0.7]
[1752832634712,13.95100049,179.98,179.94,0.7]
[1752832634909,5.55648163,179.97,179.94,0.7]
[1752832635114,13.13992861,179.97,179.94,63.08]
[1752832635322,13.13992861,179.97,179.95,0.7]
[1752832635531,7.58344698,179.96,179.95,0.7]
[1752832635737,7.58344698,179.96,179.94,62.38]
[1752832636042,5.55709919,179.95,179.94,63.08]
[1752832637136,13.13992861,179.97,179.94,63.08]
[1752832637638,13.13992861,179.97,179.95,0.7]
[1752832637813,13.13992861,179.97,179.94,63.08]
[1752832638018,13.13992861,179.97,179.95,0.7]
[1752832639570,13.85992861,179.97,179.94,62.38]
[1752832639745,7.58344698,179.95,179.94,62.38]
[1752832641445,7.58344698,179.96,179.94,62.38]
[1752832641645,5.55709919,179.95,179.94,63.08]
[1752832642450,5.55709919,179.95,179.94,29.78]
[1752832642652,5.55648163,179.97,179.94,29.78]
[1752832642861,7.58344698,179.96,179.95,0.7]
[1752832643159,7.58344698,179.96,179.94,29.08]
[1752832643344,7.58344698,179.96,179.94,29.78]
[1752832643768,5.55709919,179.95,179.94,29.08]
[1752832644148,13.14054617,179.95,179.93,33.32]
[1752832644349,13.14054617,179.95,179.94,29.06]
[1752832645163,5.55709919,179.95,179.94,29.76]
[1752832645546,5.55709919,179.95,179.94,29.06]
[1752832645749,5.55679039,179.96,179.94,29.76]
[1752832646161,13.14023737,179.96,179.94,29.76]
[1752832647242,5.55679039,179.96,179.95,0.7]
[1752832648058,0.06,179.98,179.95,0.7]
[1752832648247,0.06,179.97,179.96,69.94344698]
[1752832648452,0.06,179.98,179.96,70.64344698]
[1752832648654,0.06,179.98,179.97,41.60344698]
[1752832649047,0.06,179.98,179.97,34.02]
[1752832649250,0.06,179.98,179.97,63.06]
[1752832651455,0.06,179.98,179.97,70.63729185]
[1752832652885,0.06,179.98,179.97,63.06]
[1752832654482,5.61555555,180.0,179.97,63.06]
[1752832654792,0.06,180.0,179.98,8.27729185]
[1752832654995,0.06,180.0,179.99,29.78]
[1752832655182,0.06,180.0,179.99,37.91287827]
[1752832655702,0.06,180.0,179.99,76.78874248]
[1752832655904,0.06,180.0,179.99,72.78747827]
[1752832656317,0.06,180.02,179.99,72.78747827]
[1752832656318,5.55401277,180.05,180.01,7.57729185]
[1752832656483,5.55401277,180.05,180.02,29.8]
[1752832656786,5.55401277,180.05,180.03,0.7]
[1752832657002,5.55401277,180.05,180.04,29.8]
[1752832659680,5.65373587,180.06,180.04,37.33729185]
[1752832659911,5.65373587,180.06,180.05,0.7]
[1752832660603,5.65373587,180.06,180.05,33.32]
[1752832663594,5.65373587,180.06,180.05,34.02]
[1752832663799,0.1,180.06,180.05,41.59729185]
[1752832670808,5.61308869,180.08,180.05,34.02]
[1752832671017,5.61308869,180.08,180.07,40.89729185]
[1752832671018,0.06,180.08,180.07,40.89729185]
[1752832671227,0.06,180.08,180.07,41.56729185]
[1752832671397,0.06,180.08,180.07,33.99]
[1752832671598,0.06,180.08,180.07,41.56729185]
[1752832671799,5.55247084,180.1,180.07,41.56729185]
[1752832672039,5.55247084,180.1,180.09,33.32]
[1752832672520,6.22247084,180.1,180.09,62.28]
[1752832673824,5.55247084,180.1,180.09,62.28]
[1752832675400,6.22247084,180.1,180.09,28.96]
[1752832680527,5.55247084,180.1,180.09,28.96]
[1752832683021,6.22247084,180.1,180.09,28.96]
[1752832683753,5.55247084,180.1,180.09,28.96]
[1752832685345,5.55247084,180.1,180.09,29.63]
[1752832687143,5.55247084,180.1,180.09,62.95]
[1752832688345,5.55247084,180.1,180.09,67.79377125]
[1752832688661,0.1,180.11,180.09,67.79377125]
[1752832688858,0.1,180.11,180.1,38.83377125]
[1752832689856,0.1,180.11,180.1,45.20527125]
[1752832690758,0.1,180.11,180.1,67.75377125]
[1752832691456,0.1,180.11,180.1,62.91]
[1752832691927,5.65216256,180.11,180.1,33.32]
[1752832692133,5.65216256,180.11,180.1,62.24]
[1752832692348,5.65216256,180.11,180.1,62.91]
[1752832694255,5.65216256,180.11,180.1,62.24]
[1752832694632,5.65216256,180.11,180.1,33.32]
[1752832694841,11.16593381,180.11,180.09,33.32]
[1752832695132,10.49593381,180.11,180.1,28.92]
[1752832695352,5.65216256,180.11,180.1,28.92]
[1752832695545,6.32216256,180.11,180.1,28.92]
[1752832695930,11.16593381,180.11,180.09,33.32]
[1752832696127,5.51377125,180.1,180.09,33.32]
[1752832696331,5.51377125,180.1,180.09,62.22]
[1752832696945,6.22247084,180.1,180.09,62.22]
[1752832697129,11.06624209,180.1,180.09,62.22]
[1752832699842,5.55247084,180.1,180.09,62.22]
[1752832702567,11.06624209,180.1,180.09,62.22]
[1752832705279,11.06624209,180.1,180.09,28.9]
[1752832707274,11.06624209,180.1,180.08,0.03]
[1752832707570,5.51377125,180.09,180.08,28.83]
[1752832707775,22.29845522,180.09,180.08,28.83]
[1752832707974,22.29845522,180.09,180.08,0.03]
[1752832708674,27.85123438,180.09,180.08,0.03]
[1752832709262,16.78468397,180.08,180.06,28.8]
[1752832709466,16.78468397,180.06,180.01,0.75]
[1752832709659,4.84377125,180.03,180.01,0.03]
[1752832709860,4.84377125,180.03,180.02,28.8]
[1752832710175,5.51377125,180.03,180.02,28.8]
[1752832710563,11.06840103,180.03,180.02,28.8]
[1752832711881,6.22462978,180.03,180.02,28.8]
[1752832712081,5.55462978,180.03,180.02,28.8]
[1752832713686,5.5533959,180.07,180.02,29.52]
[1752832713893,4.84377125,180.06,180.03,0.72]
[1752832714188,4.84377125,180.06,180.04,28.78]
[1752832714596,4.84377125,180.06,180.04,29.5]
[1752832715477,5.55401277,180.05,180.04,28.78]
[1752832716991,13.1276955,180.05,180.04,28.78]
[1752832717375,5.55401277,180.05,180.04,28.78]
[1752832717701,13.7976955,180.05,180.04,28.78]
[1752832719884,13.7976955,180.05,180.02,0.72]
[1752832720089,13.7976955,180.05,180.02,29.48]
[1752832720283,13.7976955,180.05,180.03,0.72]
[1752832720284,5.55401277,180.05,180.03,0.72]
[1752832720483,13.1276955,180.05,180.03,34.04]
[1752832720803,7.57368273,180.04,180.03,33.32]
[1752832722186,13.12800399,180.04,180.03,33.32]
[1752832722896,13.12800399,180.04,180.01,0.75]
[1752832722897,42.78468397,180.03,180.01,1e-08]
[1752832723207,24.3583667,180.02,180.01,1e-08]
[1752832723397,25.0283667,180.02,180.01,1e-08]
[1752832724295,30.58330504,180.02,180.01,1e-08]
[1752832729206,23.00962231,180.02,180.01,1e-08]
[1752832729413,30.58330504,180.02,180.01,1e-08]
[1752832732886,5.55493834,180.02,180.01,1e-08]
[1752832733103,5.55493834,180.02,180.01,0.70000001]
[1752832733896,5.5547403,180.03,180.01,0.70000001]
[1752832736121,0.06,180.02,180.01,0.70000001]
[1752832736504,0.06,180.02,180.01,41.59368274]
[1752832740314,0.06,180.02,180.01,70.31368274]
[1752832740694,0.06,180.02,180.01,62.74000001]
[1752832740894,0.06,180.02,180.01,70.31368274]
[1752832742423,0.06,180.02,180.01,62.74000001]
[1752832743812,0.06,180.02,180.01,70.31368274]
[1752832744508,0.06,180.02,180.01,62.74000001]
[1752832747518,0.06,180.02,180.01,62.04000001]
[1752832748115,0.06,180.02,180.01,62.74000001]
[1752832752126,0.72,180.02,180.01,33.32000001]
[1752832752329,8.29368273,180.02,180.01,62.04000001]
[1752832752927,0.72,180.02,180.01,62.04000001]
[1752832753116,0.06,180.02,180.01,62.04000001]
[1752832753914,5.61493834,180.02,180.01,62.04000001]
[1752832755337,6.27493834,180.02,180.01,62.04000001]
[1752832757440,5.61493834,180.02,180.01,62.04000001]
[1752832757936,0.06,180.02,180.01,62.04000001]
[1752832758235,0.06,180.02,180.01,62.74000001]
[1752832759447,0.06,180.02,180.01,70.31425144]
[1752832760821,0.06,180.02,180.01,62.74000001]
[1752832761950,0.06,180.02,180.01,70.31425144]
[1752832762652,0.06,180.02,180.01,75.86949837]
[1752832762853,0.06,180.02,180.01,77.50639837]
[1752832763041,0.06,180.02,180.01,83.56789837]
[1752832764636,0.06,180.02,180.01,47.82917163]
[1752832764838,0.06,180.02,180.01,84.12342306]
[1752832769343,0.06,180.02,180.01,230.36342306]
[1752832769668,0.06,180.02,180.01,229.80789837]
[1752832774566,0.06,180.02,180.01,187.45214694]
[1752832774860,0.06,180.02,180.01,218.17115144]
[1752832775258,0.06,180.02,180.01,222.08525144]
[1752832775448,0.06,180.02,180.01,227.64049837]
[1752832779565,0.06,180.02,180.01,81.40049837]
[1752832779764,0.06,180.02,180.01,81.95602306]
[1752832780264,0.06,180.02,180.01,94.8265247]
[1752832780486,0.06,180.02,180.01,34.5755247]
[1752832780773,0.06,180.02,180.01,70.84977613]
[1752832783950,0.06,180.02,180.01,63.2755247]
[1752832784149,0.06,180.02,180.01,70.84977613]
[1752832785448,0.06,180.02,180.01,76.40077613]
[1752832786171,0.06,180.02,180.01,81.95602306]
[1752832790667,0.06,180.02,180.01,244.98070703]
[1752832790865,0.06,180.02,180.01,244.42518234]
[1752832793776,0.06,180.02,180.01,222.06949837]
[1752832793968,0.06,180.02,180.01,227.62049837]
[1752832794176,0.06,180.02,180.01,193.38949837]
[1752832794382,0.06,180.02,180.01,222.06949837]
[1752832794674,0.06,180.02,180.01,227.62049837]
[1752832798890,0.06,180.02,180.01,244.40518234]
[1752832799893,0.06,180.02,180.01,198.94049837]
[1752832800082,0.06,180.02,180.01,81.38049837]
[1752832800285,0.06,180.02,180.01,107.93602306]
[1752832801195,0.06,180.02,180.01,124.72070703]
[1752832801396,0.76,180.02,180.01,69.57425144]
[1752832802795,0.06,180.02,180.01,69.57425144]
[1752832803608,0.06,180.02,180.01,62.00000001]
[1752832803805,0.76,180.02,180.01,69.57425144]
[1752832804013,0.76,180.02,180.01,62.00000001]
[1752832804210,0.76,180.02,180.01,33.32000001]
[1752832804414,0.76,180.02,180.01,62.00000001]
[1752832804725,0.76,180.02,180.01,69.57425144]
[1752832805324,0.76,180.02,180.01,62.00000001]
[1752832808107,6.31493834,180.02,180.01,62.00000001]
[1752832808313,13.88918977,180.02,180.01,62.00000001]
[1752832810040,13.88918977,180.02,180.01,1e-08]
[1752832810204,13.88918977,180.02,180.01,28.68000001]
[1752832811237,13.88918977,180.02,180.01,1e-08]
[1752832811541,13.88918977,180.02,180.01,28.68000001]
[1752832816634,0.76,180.02,180.01,28.68000001]
[1752832817117,0.76,180.02,180.01,36.25425144]
[1752832817118,0.06,180.02,180.01,36.25425144]
[1752832817524,0.06,180.02,180.01,37.45977613]
[1752832817727,0.06,180.02,180.01,70.77977613]
[1752832818649,0.06,180.02,180.01,76.33502306]
[1752832818839,0.06,180.02,180.01,70.77977613]
[1752832819353,0.06,180.02,180.01,69.57425144]
[1752832819723,0.06,180.02,180.01,62.00000001]
[1752832820145,0.74,180.02,180.01,62.00000001]
[1752832820846,0.06,180.02,180.01,62.00000001]
[1752832821022,0.74,180.02,180.01,62.00000001]
[1752832822439,6.29493834,180.02,180.01,1e-08]
[1752832822644,13.86918977,180.02,180.01,28.68000001]
[1752832823439,6.29493834,180.02,180.01,28.68000001]
[1752832826238,6.29493834,180.02,180.01,1e-08]
[1752832826442,6.29493834,180.02,180.01,28.68000001]
[1752832826957,13.86918977,180.02,180.01,28.68000001]
[1752832830152,6.29493834,180.02,180.01,28.68000001]
[1752832830456,13.86918977,180.02,180.01,28.68000001]
[1752832831970,13.86918977,180.02,180.01,1e-08]
[1752832837160,30.65387374,180.02,180.01,1e-08]
[1752832840579,13.86918977,180.02,180.01,1e-08]
[1752832842560,16.78468397,180.01,180.0,1e-08]
[1752832842761,34.17718683,180.01,180.0,1e-08]
[1752832844670,39.73243376,180.01,180.0,1e-08]
[1752832845363,24.5839309,180.01,180.0,1e-08]
[1752832845685,32.15818233,180.01,180.0,1e-08]
[1752832847080,6.23524693,180.01,180.0,1e-08]
[1752832847273,13.80949836,180.01,180.0,1e-08]
[1752832856918,5.55524693,180.01,180.0,1e-08]
[1752832857080,0.06,180.02,180.0,34.03000001]
[1752832857414,0.06,180.02,180.01,41.60425143]
[1752832857988,0.06,180.02,180.01,34.03]
[1752832858196,0.06,180.02,180.01,41.60425143]
[1752832859314,0.06,180.02,180.01,34.03]
[1752832859496,0.06,180.02,180.01,41.60425143]
[1752832860285,0.06,180.02,180.01,34.03]
[1752832861106,0.06,180.02,180.01,33.31]
[1752832861281,8.35425143,180.02,180.0,1e-08]
[1752832861488,7.57425143,180.01,180.0,1e-08]
[1752832861815,8.29425143,180.01,180.0,1e-08]
[1752832862117,0.72,180.01,180.0,1e-08]
[1752832862284,8.29425143,180.01,180.0,1e-08]
[1752832862484,7.57425143,180.01,180.0,1e-08]
[1752832863417,13.12949836,180.01,180.0,1e-08]
[1752832864330,13.84949836,180.01,180.0,1e-08]
[1752832868128,38.20843376,180.01,180.0,1e-08]
[1752832869817,38.26843376,180.01,180.0,1e-08]
[1752832870023,66.90843376,180.01,180.0,1e-08]
[1752832870406,24.3589354,179.98,179.97,0.03]
[1752832870808,25.0789354,179.98,179.97,0.03]
[1752832871231,17.50468397,179.98,179.97,1e-08]
[1752832871430,25.0789354,179.98,179.97,1e-08]
[1752832871958,30.6351083,179.98,179.97,1e-08]
[1752832873153,42.78468397,179.94,179.92,0.03]
[1752832873358,50.3589354,179.94,179.92,0.03]
[1752832873654,7.57425143,179.94,179.93,0.75]
[1752832873845,7.57425143,179.94,179.93,0.03]
[1752832874043,13.13165945,179.94,179.93,0.03]
[1752832876043,13.80165945,179.94,179.93,0.03]
[1752832883655,6.22740802,179.94,179.93,0.03]
[1752832883848,13.80165945,179.94,179.93,0.03]
[1752832885351,5.55740802,179.94,179.93,0.03]
[1752832885550,29.91634342,179.94,179.93,0.03]
[1752832885750,29.91634342,179.94,179.93,0.69]
[1752832886165,29.91634342,179.94,179.93,0.03]
[1752832886758,22.34209199,179.94,179.93,0.03]
[1752832886960,29.91634342,179.94,179.93,0.03]
[1752832887893,5.55709919,179.95,179.93,0.03]
[1752832888178,7.57425143,179.94,179.93,0.03]
[1752832888761,25.0289354,179.94,179.93,0.03]
[1752832890094,30.58634342,179.94,179.93,0.03]
[1752832891660,30.64634342,179.94,179.93,0.03]
[1752832894473,42.78468397,179.93,179.9,0.03]
[1752832894678,42.78468397,179.93,179.86,0.03]
[1752832894679,5.55926173,179.88,179.86,0.03]
[1752832894874,7.57425143,179.87,179.86,0.03]
[1752832895199,25.0289354,179.87,179.82,0.03]
[1752832895389,16.78468397,179.85,179.82,0.03]
[1752832895700,24.3589354,179.83,179.82,0.03]
[1752832896299,25.0289354,179.83,179.82,0.03]
[1752832896482,25.0289354,179.83,179.82,1e-08]
[1752832896873,30.58974282,179.83,179.82,1e-08]
[1752832897798,16.78468397,179.82,179.81,1e-08]
[1752832898098,25.0289354,179.82,179.81,1e-08]
[1752832898992,30.59005207,179.82,179.81,1e-08]
[1752832903189,42.78468397,179.8,179.79,1e-08]
[1752832903393,57.93318683,179.8,179.79,1e-08]
[1752832903710,58.60318683,179.8,179.79,1e-08]
[1752832904490,64.16492209,179.8,179.79,1e-08]
[1752832911592,64.16492209,179.8,179.77,0.03]
[1752832911798,7.57425143,179.78,179.77,0.03]
[1752832912120,17.43468397,179.79,179.77,0.03]
[1752832912306,7.57425143,179.78,179.77,0.03]
[1752832913018,13.13660541,179.78,179.77,0.03]
[1752832913817,13.78660541,179.78,179.77,0.03]
[1752832915997,13.13660541,179.78,179.77,0.03]
[1752832916911,5.56235398,179.78,179.77,0.74]
[1752832917198,14.61427612,179.81,179.77,8.31425143]
[1752832917199,0.06,179.81,179.77,8.31425143]
[1752832917401,5.56173526,179.8,179.78,0.71]
[1752832917819,5.62146988,179.81,179.78,0.71]
[1752832918022,0.06,179.81,179.79,6.6547]
[1752832918212,0.06,179.81,179.8,2.262]
[1752832918520,0.06,179.81,179.8,9.83625143]
[1752832918915,0.06,179.81,179.8,43.14625143]
[1752832919097,14.81311304,179.84,179.8,49.26416021]
[1752832919416,14.81311304,179.84,179.83,7.57425143]
[1752832919614,14.81311304,179.84,179.83,36.90425143]
[1752832920011,5.55935533,179.88,179.83,70.21425143]
[1752832920221,5.55935533,179.88,179.84,0.71]
[1752832920403,5.55935533,179.88,179.85,7.57425143]
[1752832920605,13.13360676,179.88,179.86,0.71]
[1752832920807,7.57425143,179.87,179.86,0.71]
[1752832921001,5.56018904,179.85,179.83,0.71]
[1752832922222,13.13444047,179.85,179.81,29.33]
[1752832922525,13.13444047,179.85,179.82,0.71]
[1752832922819,13.13444047,179.85,179.83,0.71]
[1752832923304,5.56018904,179.85,179.84,0.71]
[1752832924726,5.55995161,179.86,179.84,0.71]
[1752832925227,5.55995161,179.86,179.84,29.33]
[1752832925524,5.55995161,179.86,179.85,0.71]
[1752832926723,29.91888701,179.86,179.81,7.57425143]
[1752832927033,7.57425143,179.84,179.82,0.71]
[1752832927527,5.56080742,179.83,179.81,28.62]
[1752832928228,5.56080742,179.83,179.82,0.71]
[1752832929705,5.56056692,179.84,179.82,0.71]
[1752832929911,5.56027878,179.85,179.82,8.28425143]
[1752832930229,9.63037378,179.89,179.84,7.57425143]
[1752832930532,5.55926173,179.88,179.86,33.31]
[1752832930731,5.55926173,179.88,179.87,0.71]
[1752832931312,15.18939324,179.89,179.87,0.71]
[1752832931631,22.76364467,179.89,179.87,0.71]
[1752832931826,22.76364467,179.89,179.86,33.31]
[1752832932132,22.76364467,179.89,179.88,0.71]
[1752832932720,15.18939324,179.89,179.86,34.02]